bitfinex/quotes_BTCUSD_20260126
["timestamp","ask_amount","ask_price","bid_price","bid_amount"]
[1769389134364,0.11473171,86831.0,86819.0,0.14993821]
[1769389134561,0.11473171,86830.0,86819.0,0.14993821]
[1769389134762,0.11473171,86829.0,86819.0,0.14993821]
[1769389134969,0.11473171,86828.0,86819.0,0.14993821]
[1769389135113,0.95139545,86833.0,86819.0,0.14993821]
[1769389135311,0.1147201,86832.0,86819.0,0.14993821]
[1769389135533,0.1147201,86831.0,86819.0,0.14993821]
[1769389135734,0.1147201,86830.0,86819.0,0.14993821]
[1769389135969,0.1147201,86829.0,86819.0,0.14993821]
[1769389136172,0.95139545,86833.0,86819.0,0.14993821]
[1769389136344,0.11472133,86832.0,86819.0,0.14993821]
[1769389136552,0.11472133,86831.0,86819.0,0.14993821]
[1769389136728,0.11472133,86830.0,86819.0,0.14993821]
[1769389136932,0.11472133,86829.0,86819.0,0.14993821]
[1769389137113,0.95139545,86833.0,86819.0,0.14993821]
[1769389137317,0.11471831,86832.0,86819.0,0.14993821]
[1769389137558,0.11471831,86831.0,86819.0,0.14993821]
[1769389137772,0.11471831,86830.0,86819.0,0.14993821]
[1769389137924,0.11471831,86829.0,86819.0,0.14993821]
[1769389138121,0.95139545,86833.0,86819.0,0.14993821]
[1769389138334,0.11472532,86832.0,86819.0,0.14993821]
[1769389138554,0.11472532,86831.0,86819.0,0.14993821]
[1769389138752,0.11472532,86830.0,86819.0,0.14993821]
[1769389138963,0.11472532,86829.0,86819.0,0.14993821]
[1769389139174,0.95139545,86833.0,86819.0,0.14993821]
[1769389139394,0.11471624,86832.0,86819.0,0.14993821]
[1769389139600,0.11471624,86831.0,86819.0,0.14993821]
[1769389139810,0.11471624,86830.0,86819.0,0.14993821]
[1769389140055,0.11471624,86829.0,86819.0,0.14993821]
[1769389140259,0.95139545,86833.0,86819.0,0.14993821]
[1769389140463,0.11471483,86832.0,86819.0,0.14993821]
[1769389140667,0.11471483,86831.0,86819.0,0.14993821]
[1769389140865,0.11471483,86830.0,86819.0,0.14993821]
[1769389141040,0.11471483,86829.0,86819.0,0.14993821]
[1769389141356,0.95139545,86833.0,86819.0,0.14993821]
[1769389141548,0.11471949,86832.0,86819.0,0.14993821]
[1769389141894,0.11471949,86831.0,86819.0,0.14993821]
[1769389142098,0.11471949,86830.0,86819.0,0.14993821]
[1769389142382,0.11471949,86829.0,86819.0,0.14993821]
[1769389142583,0.95139545,86833.0,86819.0,0.14993821]
[1769389142942,0.11472144,86832.0,86819.0,0.14993821]
[1769389143147,0.11472144,86831.0,86819.0,0.14993821]
[1769389143349,0.47392799,86830.0,86819.0,0.14993821]
[1769389143547,0.11472144,86829.0,86819.0,0.14993821]
[1769389143787,0.02574521,86828.0,86819.0,0.14993821]
[1769389144221,0.11472069,86827.0,86819.0,0.14993821]
[1769389144430,0.02574521,86826.0,86819.0,0.14993821]
[1769389144613,0.02574521,86828.0,86819.0,0.14993821]
[1769389144818,0.11473047,86827.0,86819.0,0.14989052]
[1769389145117,0.02574521,86826.0,86819.0,0.14989052]
[1769389145319,0.02574521,86828.0,86819.0,0.14989052]
[1769389145497,0.11473225,86827.0,86819.0,0.14989052]
[1769389145730,0.02574521,86826.0,86819.0,0.14989052]
[1769389145910,0.02574521,86829.0,86819.0,0.14989052]
[1769389146105,0.11473266,86828.0,86819.0,0.14983956]
[1769389146432,0.14047787,86827.0,86819.0,0.14983956]
[1769389146647,0.02574521,86827.0,86819.0,0.14983956]
[1769389146782,0.02574521,86829.0,86819.0,0.14983956]
[1769389146988,0.11473537,86828.0,86819.0,0.14983956]
[1769389147204,0.14048058,86827.0,86819.0,0.14983956]
[1769389147406,0.02574521,86827.0,86819.0,1.30720387]
[1769389147625,0.02574521,86827.0,86819.0,0.14983956]
[1769389148044,0.3476898,86830.0,86819.0,0.14983956]
[1769389148262,0.1147377,86829.0,86819.0,0.14983956]
[1769389148596,0.1147377,86828.0,86819.0,0.14983956]
[1769389148798,0.1147377,86827.0,86819.0,0.14983956]
[1769389149086,0.03726156,86833.0,86819.0,0.14983956]
[1769389149321,0.11474172,86832.0,86819.0,0.14983956]
[1769389149610,0.11474172,86831.0,86819.0,0.14983956]
[1769389149835,0.02574521,86833.0,86819.0,0.14983956]
[1769389149836,0.11474172,86830.0,86819.0,0.14983956]
[1769389150063,0.11474172,86829.0,86819.0,0.14983956]
[1769389151285,0.11474172,86828.0,86819.0,0.14983956]
[1769389151425,0.000141,86832.0,86819.0,0.14983956]
[1769389151770,0.11475951,86831.0,86819.0,0.14983956]
[1769389151907,0.11475951,86830.0,86819.0,0.14983956]
[1769389152115,0.11475951,86829.0,86819.0,0.14983956]
[1769389152353,0.11475951,86828.0,86819.0,0.14983956]
[1769389152551,0.11475951,86827.0,86819.0,0.14983956]
[1769389152750,0.000141,86832.0,86819.0,0.14983956]
[1769389153079,0.11475881,86831.0,86819.0,0.14983956]
[1769389153211,0.11475881,86830.0,86822.0,0.20563277]
[1769389153416,0.000141,86832.0,86822.0,0.20563277]
[1769389153417,0.000141,86832.0,86824.0,0.20563277]
[1769389153624,0.11475675,86831.0,86824.0,0.21715032]
[1769389153826,0.000141,86832.0,86824.0,0.20563277]
[1769389154021,0.000141,86832.0,86824.0,0.20553087]
[1769389154464,0.00018794,86832.0,86824.0,0.21704842]
[1769389154671,0.00018794,86832.0,86824.0,0.20538477]
[1769389154843,0.0919495,86841.0,86829.0,0.20563277]
[1769389154844,0.0001434,86841.0,86829.0,0.20563277]
[1769389155044,0.11473352,86840.0,86829.0,0.20563277]
[1769389155271,0.11473352,86839.0,86829.0,0.20548666]
[1769389155452,0.11473352,86838.0,86829.0,0.20519442]
[1769389155649,0.11473352,86837.0,86829.0,0.20519442]
[1769389155849,0.11473352,86836.0,86829.0,0.20519442]
[1769389156085,0.11473352,86835.0,86829.0,0.20407448]
[1769389156296,0.00019035,86841.0,86829.0,0.20407448]
[1769389156612,0.11468915,86840.0,86829.0,0.20392828]
[1769389156788,0.11468915,86839.0,86829.0,0.20392828]
[1769389156966,0.11468915,86838.0,86829.0,0.20392828]
[1769389157201,0.11468915,86837.0,86829.0,0.20392828]
[1769389157373,0.11468915,86836.0,86829.0,0.20392828]
[1769389157536,0.00019035,86841.0,86829.0,0.20303981]
[1769389157742,0.11467884,86840.0,86831.0,1.09482861]
[1769389157941,0.11467884,86839.0,86832.0,0.20274313]
[1769389158150,0.11467884,86838.0,86832.0,0.20242125]
[1769389158391,0.00019035,86841.0,86834.0,0.20298448]
[1769389158587,0.11466767,86840.0,86834.0,0.20298448]
[1769389158802,0.11466767,86839.0,86834.0,1.09482861]
[1769389158947,0.00019035,86841.0,86835.0,0.20238976]
[1769389159160,0.11467376,86840.0,86835.0,0.20108075]
[1769389159354,0.00019035,86841.0,86835.0,0.2009617]
[1769389159591,0.11465849,86840.0,86835.0,0.2009617]
[1769389159797,0.00019035,86841.0,86835.0,0.2009617]
[1769389159953,0.11465739,86840.0,86835.0,0.2009617]
[1769389160155,0.00019035,86841.0,86835.0,0.20084265]
[1769389160441,0.00019035,86841.0,86835.0,0.20030615]
[1769389160612,0.1146442,86840.0,86835.0,0.19966231]
[1769389160817,0.00019035,86841.0,86835.0,0.19907205]
[1769389161073,0.11464774,86840.0,86835.0,1.09472127]
[1769389161252,0.00019035,86841.0,86836.0,0.20255512]
[1769389161393,0.00019035,86841.0,86836.0,0.2019647]
[1769389161602,0.00019035,86841.0,86836.0,0.20132046]
[1769389161804,0.00019035,86841.0,86836.0,0.20078348]
[1769389162100,0.00019035,86841.0,86836.0,0.19987036]
[1769389162318,0.00019035,86841.0,86836.0,0.19922563]
[1769389162519,0.00019035,86841.0,86836.0,0.19858074]
[1769389162716,0.00019035,86841.0,86836.0,0.1979357]
[1769389163005,0.00019035,86841.0,86836.0,0.19729051]
[1769389163307,0.00019035,86841.0,86836.0,0.19653759]
[1769389163517,0.00019035,86841.0,86836.0,0.19589199]
[1769389163677,0.00019035,86841.0,86836.0,0.19529998]
[1769389163876,0.00019035,86841.0,86836.0,0.19470777]
[1769389164080,0.00019035,86841.0,86836.0,0.19411535]
[1769389164248,0.00019035,86841.0,86836.0,0.19357655]
[1769389164455,0.00019035,86841.0,86836.0,0.19298361]
[1769389164687,0.00019035,86841.0,86836.0,0.19233645]
[1769389164886,0.0001434,86849.0,86847.0,0.00980965]
[1769389165156,0.11461738,86848.0,86841.0,0.00019035]
[1769389165356,0.0001434,86849.0,86842.0,0.20298448]
[1769389165582,0.11460112,86848.0,86842.0,0.20298448]
[1769389165791,0.0001434,86849.0,86842.0,0.20298448]
[1769389165990,0.11460123,86848.0,86842.0,0.20298448]
[1769389166190,0.0001434,86849.0,86842.0,0.20298448]
[1769389167050,0.97448748,86858.0,86843.0,1.09482861]
[1769389167051,0.0001434,86858.0,86843.0,1.09482861]
[1769389167186,0.11458832,86857.0,86846.0,0.20298448]
[1769389167387,0.11458832,86856.0,86847.0,0.19992348]
[1769389167608,0.11458832,86855.0,86847.0,0.19992348]
[1769389167776,0.11458832,86854.0,86847.0,0.19992348]
[1769389167977,0.11458832,86853.0,86847.0,0.19947671]
[1769389168196,0.0001434,86858.0,86847.0,0.1984937]
[1769389168551,0.11457671,86857.0,86847.0,0.19706303]
[1769389168880,0.11457671,86856.0,86847.0,0.1957209]
[1769389169082,0.11457671,86855.0,86847.0,0.19473612]
[1769389169294,0.11457671,86854.0,86841.0,0.20298448]
[1769389169518,0.1390267,86853.0,86841.0,0.20298448]
[1769389169670,0.02444999,86853.0,86841.0,0.20298448]
[1769389169963,0.02449799,86855.0,86841.0,0.20298448]
[1769389170163,0.11453598,86854.0,86841.0,0.20298448]
[1769389170305,0.02449799,86855.0,86841.0,0.20298448]
[1769389170519,0.11452484,86854.0,86841.0,0.20298448]
[1769389170720,0.02296724,86853.0,86841.0,0.20298448]
[1769389170930,0.02453174,86852.0,86841.0,0.20298448]
[1769389171141,0.97448604,86856.0,86841.0,0.20298448]
[1769389171341,0.13911658,86855.0,86841.0,0.20298448]
[1769389171538,0.11452409,86854.0,86841.0,0.20298448]
[1769389171745,0.97448604,86856.0,86841.0,0.20298448]
[1769389172077,0.11451391,86855.0,86841.0,0.20298448]
[1769389172276,0.11451391,86854.0,86841.0,0.20298448]
[1769389172482,0.97448604,86856.0,86841.0,0.20298448]
[1769389172680,0.1145065,86855.0,86841.0,0.20298448]
[1769389172926,0.1145065,86854.0,86841.0,0.20298448]
[1769389173079,0.0001434,86858.0,86842.0,0.20298448]
[1769389173279,0.11450674,86857.0,86842.0,0.20298448]
[1769389173450,0.11450674,86856.0,86842.0,0.20298448]
[1769389173663,0.11450674,86855.0,86844.0,0.05757434]
[1769389173858,0.0001434,86858.0,86831.0,0.20122228]
[1769389174071,0.98600027,86849.0,86831.0,0.20126923]
[1769389174278,0.0115145,86847.0,86831.0,0.20126923]
[1769389174500,0.01151556,86839.0,86831.0,4.695e-05]
[1769389174704,0.97961933,86840.0,86831.0,4.695e-05]
[1769389174915,0.01151569,86838.0,86831.0,4.695e-05]
[1769389175131,0.97961933,86839.0,86831.0,4.695e-05]
[1769389178431,0.3476898,86841.0,86831.0,4.695e-05]
[1769389178799,0.35920509,86841.0,86831.0,4.695e-05]
[1769389178996,0.3476898,86841.0,86831.0,4.695e-05]
[1769389179620,0.35914953,86841.0,86831.0,4.695e-05]
[1769389180291,0.34763424,86841.0,86831.0,4.695e-05]
[1769389182614,0.99113423,86844.0,86831.0,4.695e-05]
[1769389182808,0.02574521,86843.0,86831.0,4.695e-05]
[1769389183850,0.0001434,86858.0,86843.0,0.01]
[1769389184058,1.09422803,86857.0,86842.0,0.20122228]
[1769389184171,1.09422803,86856.0,86842.0,0.20122228]
[1769389184392,0.97961933,86856.0,86842.0,0.20122228]
[1769389185011,0.97961933,86857.0,86842.0,0.20113242]
[1769389186215,0.9911325,86857.0,86842.0,0.20113242]
[1769389186642,0.97961933,86857.0,86842.0,0.20113242]
[1769389186860,0.9911325,86857.0,86842.0,0.20113242]
[1769389187065,0.99113263,86856.0,86842.0,0.20113242]
[1769389187485,0.01151344,86855.0,86842.0,0.20113242]
[1769389187693,0.0115133,86856.0,86836.0,1.03968678]
[1769389187895,0.97961933,86849.0,86836.0,0.20122228]
[1769389188101,0.01151503,86843.0,86831.0,4.695e-05]
[1769389188309,0.34763424,86841.0,86831.0,4.695e-05]
[1769389188754,0.97961933,86842.0,86831.0,4.695e-05]
[1769389188924,0.99113449,86842.0,86831.0,4.695e-05]
[1769389189228,0.0115149,86844.0,86831.0,4.695e-05]
[1769389190953,0.77631817,86843.0,86831.0,4.695e-05]
[1769389191360,0.01151516,86842.0,86831.0,4.695e-05]
[1769389191562,0.77631817,86843.0,86831.0,4.695e-05]
[1769389191859,0.7878332,86843.0,86831.0,4.695e-05]
[1769389192296,0.01151516,86842.0,86831.0,4.695e-05]
[1769389192520,0.7878332,86843.0,86831.0,4.695e-05]
[1769389192657,0.77631817,86843.0,86831.0,4.695e-05]
[1769389192852,0.7878332,86843.0,86831.0,4.695e-05]
[1769389193578,0.77631817,86843.0,86831.0,4.695e-05]
[1769389193827,0.27375975,86845.0,86831.0,4.695e-05]
[1769389193828,0.20467084,86845.0,86831.0,4.695e-05]
[1769389193938,0.2161856,86845.0,86831.0,4.695e-05]
[1769389194763,0.0115149,86844.0,86831.0,4.695e-05]
[1769389194973,0.02435367,86845.0,86831.0,4.695e-05]
[1769389195185,0.77631817,86846.0,86831.0,0.20126923]
[1769389195391,0.77631817,86846.0,86832.0,0.00380123]
[1769389195592,0.77631817,86846.0,86832.0,0.02177467]
[1769389196206,0.01151476,86845.0,86832.0,0.02177467]
[1769389196641,0.7878328,86846.0,86832.0,0.02177467]
[1769389196800,0.01151476,86845.0,86832.0,0.02177467]
[1769389197222,0.0115149,86844.0,86832.0,0.02177467]
[1769389197422,0.77631817,86846.0,86832.0,0.02177467]
[1769389197844,0.7878328,86846.0,86832.0,0.02177467]
[1769389198125,0.01151476,86845.0,86832.0,0.02177467]
[1769389199525,0.7878328,86846.0,86832.0,0.02177467]
[1769389199974,0.77631817,86846.0,86832.0,0.22299695]
[1769389200709,0.34757968,86850.0,86832.0,0.22299695]
[1769389200902,0.77631817,86853.0,86834.0,0.20122228]
[1769389201114,0.77631817,86853.0,86836.0,0.20122228]
[1769389201577,0.01151383,86852.0,86836.0,0.20122228]
[1769389201787,0.34757968,86850.0,86836.0,0.20122228]
[1769389202580,0.77631817,86852.0,86836.0,0.21273824]
[1769389202786,0.17688,86856.0,86839.0,0.20165109]
[1769389203432,0.95319817,86856.0,86839.0,0.20165109]
[1769389204097,0.96471147,86856.0,86839.0,0.20165109]
[1769389204545,0.77631817,86852.0,86839.0,0.20165109]
[1769389204763,0.787832,86852.0,86839.0,0.20165109]
[1769389205204,0.78783214,86851.0,86839.0,0.20165109]
[1769389205420,0.35909378,86850.0,86839.0,0.20165109]
[1769389205860,0.34757968,86850.0,86839.0,0.20165109]
[1769389206576,0.95319817,86856.0,86839.0,0.20165109]
[1769389206797,0.0001434,86858.0,86842.0,0.01151516]
[1769389207014,0.0001434,86858.0,86844.0,1.02967664]
[1769389207222,0.34757968,86860.0,86846.0,0.20461994]
[1769389207396,0.01151304,86858.0,86846.0,0.20461994]
[1769389207596,1.05927842,86859.0,86846.0,0.20461994]
[1769389207597,1.04776551,86859.0,86846.0,0.20461994]
[1769389208203,0.01151304,86858.0,86846.0,0.20461994]
[1769389208414,1.05927855,86858.0,86846.0,0.20461994]
[1769389208615,0.01151344,86855.0,86846.0,0.20461994]
[1769389208791,0.0115133,86856.0,86846.0,0.20461994]
[1769389208992,0.01151344,86855.0,86846.0,0.20461994]
[1769389209393,0.0115133,86856.0,86846.0,0.20461994]
[1769389209751,0.01151344,86855.0,86846.0,0.20461994]
[1769389209892,1.04776551,86858.0,86846.0,0.20461994]
[1769389212010,0.04606585,86869.0,86846.0,0.20461994]
[1769389212265,0.10002454,86866.0,86851.0,0.20461994]
[1769389212469,0.2447,86867.0,86851.0,0.20461994]
[1769389212843,0.0002183,86874.0,86868.0,0.20461994]
[1769389213048,0.0001465,86883.0,86869.0,1.02967664]
[1769389213250,0.0001465,86883.0,86873.0,0.20461994]
[1769389213452,0.0001465,86883.0,86874.0,0.20461994]
[1769389214053,0.00061646,86883.0,86874.0,0.20461994]
[1769389216521,0.00061646,86883.0,86874.0,0.20443244]
[1769389216744,0.00061646,86883.0,86874.0,0.2032135]
[1769389216989,0.00061646,86883.0,86874.0,0.20236944]
[1769389217209,0.00061646,86883.0,86874.0,0.20124379]
[1769389217436,0.00061646,86883.0,86875.0,1.02422527]
[1769389217651,0.00061646,86883.0,86876.0,0.21278857]
[1769389218733,0.0001465,86892.0,86879.0,1.02422527]
[1769389218945,0.00028737,86892.0,86880.0,0.21278857]
[1769389219178,0.00028737,86892.0,86881.0,0.21278857]
[1769389219599,0.00028737,86892.0,86883.0,0.21278857]
[1769389219824,0.00028737,86892.0,86883.0,1.02422527]
[1769389220062,0.00028737,86892.0,86886.0,0.21241326]
[1769389220323,0.00014087,86892.0,86886.0,0.21241326]
[1769389220493,0.00014087,86892.0,86880.0,0.34757968]
[1769389220494,0.0918061,86909.0,86899.0,0.21278857]
[1769389220750,0.0918061,86911.0,86901.0,1.02422527]
[1769389220958,0.0920061,86912.0,86902.0,0.21278857]
[1769389221178,0.0002,86912.0,86902.0,0.21278857]
[1769389222015,0.34777968,86912.0,86902.0,0.2126989]
[1769389222441,1.3643404,86912.0,86892.0,1.02422527]
[1769389222643,0.01150655,86907.0,86893.0,0.21278857]
[1769389222849,0.01150615,86910.0,86893.0,0.21278857]
[1769389223026,1.42187043,86912.0,86893.0,1.02422527]
[1769389223027,0.01150602,86911.0,86893.0,1.02422527]
[1769389223229,0.01150628,86909.0,86894.0,0.21278857]
[1769389223575,0.0002,86912.0,86895.0,0.21278857]
[1769389223792,0.34757968,86910.0,86895.0,0.21278857]
[1769389224225,0.01150602,86911.0,86895.0,0.21278857]
[1769389224424,0.01150615,86910.0,86895.0,0.21278857]
[1769389224645,0.06903711,86910.0,86895.0,0.21278857]
[1769389224852,0.01150615,86910.0,86895.0,0.21278857]
[1769389225043,0.01150628,86909.0,86896.0,0.21278857]
[1769389225393,0.35908583,86910.0,86896.0,0.21250711]
[1769389225394,0.34757968,86910.0,86896.0,0.21250711]
[1769389225614,0.34757968,86910.0,86897.0,0.21278857]
[1769389225788,0.01170589,86912.0,86897.0,0.21278857]
[1769389226210,0.01150602,86911.0,86897.0,0.21278857]
[1769389226625,0.0002,86912.0,86891.0,0.22288]
[1769389226854,0.01150602,86911.0,86894.0,1.02422527]
[1769389227056,1.02826661,86912.0,86895.0,0.21278857]
[1769389227264,0.0002,86912.0,86897.0,0.21278857]
[1769389227484,0.01150602,86911.0,86897.0,0.21278857]
[1769389227715,0.01150602,86911.0,86889.0,0.01150893]
[1769389227716,0.22131913,86859.0,86814.0,1.02422527]
[1769389227933,0.05569499,86867.0,86800.0,0.61848237]
[1769389227934,0.05551039,86858.0,86837.0,0.21278857]
[1769389228145,0.1768,86867.0,86836.0,0.00014087]
[1769389228146,0.22131913,86849.0,86838.0,0.2301287]
[1769389228357,0.22131913,86856.0,86838.0,0.21278857]
[1769389228562,0.55899881,86850.0,86838.0,0.23012934]
[1769389228767,0.01151423,86849.0,86838.0,0.21278857]
[1769389228976,0.0115145,86847.0,86838.0,0.17824073]
[1769389229237,0.01151503,86843.0,86831.0,1.02422527]
[1769389229444,0.55899881,86850.0,86832.0,0.21278857]
[1769389229445,0.01151569,86838.0,86832.0,0.21278857]
[1769389229656,0.01151569,86838.0,86813.0,0.01151901]
[1769389229861,0.05757421,86845.0,86813.0,0.01151901]
[1769389229862,0.01151635,86833.0,86815.0,0.21278857]
[1769389230089,0.21461273,86832.0,86816.0,0.00115186]
[1769389230308,0.21461273,86832.0,86817.0,0.21278857]
[1769389230751,0.01151582,86837.0,86819.0,1.02422527]
[1769389230986,0.01151582,86837.0,86820.0,1.02422527]
[1769389231233,0.01151582,86837.0,86821.0,0.21278857]
[1769389231462,0.01151582,86837.0,86821.0,0.17821211]
[1769389231674,0.22612855,86837.0,86821.0,0.14363565]
[1769389231908,0.20991868,86836.0,86813.0,4.695e-05]
[1769389232119,0.20991868,86832.0,86814.0,0.17821211]
[1769389232330,0.43462125,86840.0,86814.0,0.17821211]
[1769389232331,0.20991868,86831.0,86814.0,0.17821211]
[1769389232580,0.21461273,86830.0,86814.0,0.17821211]
[1769389232779,0.01151715,86827.0,86813.0,4.695e-05]
[1769389232987,0.01151755,86824.0,86813.0,4.695e-05]
[1769389233195,0.01151808,86820.0,86813.0,4.695e-05]
[1769389233402,0.22613081,86820.0,86813.0,4.695e-05]
[1769389233558,0.01151821,86819.0,86813.0,4.695e-05]
[1769389233741,0.01151834,86818.0,86813.0,4.695e-05]
[1769389233951,0.21461273,86817.0,86813.0,4.695e-05]
[1769389236612,0.21461273,86817.0,86803.0,0.04604]
[1769389236870,0.21461273,86817.0,86805.0,0.00014824]
[1769389240206,0.01151768,86823.0,86805.0,0.00014824]
[1769389240207,0.01151728,86826.0,86805.0,0.00014824]
[1769389240392,0.01151795,86821.0,86805.0,0.00014824]
[1769389240537,0.22613068,86821.0,86805.0,0.00014824]
[1769389240737,0.01151808,86820.0,86805.0,0.00014824]
[1769389240960,0.01151834,86818.0,86805.0,0.00014824]
[1769389241179,0.01151821,86819.0,86805.0,0.00014824]
[1769389241382,0.01151834,86818.0,86805.0,0.00014824]
[1769389241693,0.01151848,86817.0,86805.0,0.00014824]
[1769389241949,0.01151861,86816.0,86805.0,0.00014824]
[1769389242157,0.00014824,86805.0,86803.0,0.04604]
[1769389242359,0.01151967,86808.0,86796.0,0.20644637]
[1769389242489,0.0115198,86807.0,86796.0,0.20658703]
[1769389242935,0.19373411,86806.0,86796.0,0.00014066]
[1769389243274,0.20525431,86804.0,86796.0,0.00014066]
[1769389243426,0.01152007,86805.0,86796.0,0.00014066]
[1769389243798,0.01151994,86806.0,86796.0,0.00014066]
[1769389244000,0.20525405,86806.0,86796.0,0.00014066]
[1769389244830,0.19373411,86805.0,86796.0,0.00014066]
[1769389245623,0.20525418,86805.0,86796.0,0.00014066]
[1769389245841,0.19373411,86805.0,86796.0,0.00014066]
[1769389247112,0.0003631,86860.0,86822.0,0.01151781]
[1769389247264,0.21362272,86856.0,86828.0,1.05328414]
[1769389247467,0.0003631,86860.0,86836.0,0.20644637]
[1769389247666,0.0003631,86860.0,86840.0,0.20644637]
[1769389247667,0.01187587,86860.0,86840.0,0.20644637]
[1769389247848,1.03408468,86850.0,86841.0,0.223]
[1769389248045,0.01,86841.0,86829.0,0.20644637]
[1769389248248,1.03408468,86848.0,86839.0,0.17692]
[1769389248452,1.03422542,86848.0,86839.0,0.17692]
[1769389248658,1.04573978,86848.0,86839.0,0.17692]
[1769389248853,1.03422542,86848.0,86839.0,0.17692]
[1769389249060,1.03422542,86848.0,86830.0,1.05328414]
[1769389249261,1.03422542,86848.0,86831.0,0.42944637]
[1769389249465,1.03422542,86848.0,86832.0,0.20644637]
[1769389250287,0.00014074,86848.0,86834.0,0.20644637]
[1769389251114,0.00014074,86848.0,86835.0,1.05328414]
[1769389251258,0.00014074,86848.0,86836.0,0.20644637]
[1769389254199,0.0115145,86847.0,86837.0,0.17692]
[1769389254402,0.21362272,86845.0,86837.0,0.0104242]
[1769389254601,0.21362272,86845.0,86837.0,0.00829845]
[1769389254602,0.82154563,86844.0,86837.0,0.00829845]
[1769389254922,0.01151503,86843.0,86837.0,0.00829845]
[1769389255122,0.01151529,86841.0,86831.0,0.04608]
[1769389255323,0.82773958,86837.0,86826.0,0.04608]
[1769389255572,0.01151596,86836.0,86820.0,0.04608]
[1769389255795,0.83095736,86834.0,86820.0,0.04608]
[1769389255979,0.81944114,86834.0,86820.0,0.04608]
[1769389257653,0.81944114,86834.0,86814.0,0.01151887]
[1769389257853,0.81944114,86834.0,86816.0,0.20644637]
[1769389259427,1.04457915,86841.0,86818.0,0.21796471]
[1769389259658,0.81944114,86840.0,86820.0,1.05328414]
[1769389259851,0.81944114,86840.0,86821.0,0.20644637]
[1769389260076,0.00014074,86848.0,86825.0,0.01151742]
[1769389260345,0.00014074,86848.0,86830.0,1.25973051]
[1769389260545,0.00014074,86848.0,86831.0,0.21931521]
[1769389260707,0.00014074,86848.0,86831.0,0.21855733]
[1769389260708,0.81958188,86848.0,86831.0,0.21855733]
[1769389260907,0.83109624,86848.0,86831.0,0.21779911]
[1769389261252,0.00014074,86848.0,86834.0,1.05328414]
[1769389261426,0.00014074,86848.0,86835.0,1.05328414]
[1769389261626,0.00014074,86848.0,86837.0,0.20644637]
[1769389262030,0.00014074,86848.0,86838.0,0.20644637]
[1769389264162,0.00014074,86848.0,86837.0,1.05328414]
[1769389264163,0.81944114,86863.0,86845.0,0.01151476]
[1769389264365,0.00083274,86860.0,86850.0,0.21747125]
[1769389264544,0.00083274,86860.0,86852.0,0.21747125]
[1769389264720,0.00083274,86860.0,86853.0,1.05979989]
[1769389264921,0.00083274,86860.0,86854.0,0.21747125]
[1769389265742,0.01,86854.0,86844.0,0.21747125]
[1769389266746,0.01151291,86859.0,86844.0,0.21747125]
[1769389266955,0.8204564,86860.0,86844.0,0.21747125]
[1769389267151,0.83196917,86860.0,86844.0,0.21747125]
[1769389267331,0.8204564,86860.0,86844.0,0.21747125]
[1769389268273,0.01151291,86859.0,86844.0,0.21747125]
[1769389268420,0.00083274,86860.0,86844.0,0.21747125]
[1769389268631,0.01,86844.0,86828.0,0.21747125]
[1769389268855,0.01,86844.0,86829.0,1.05979989]
[1769389269085,0.01151436,86848.0,86830.0,0.21747125]
[1769389269292,0.81967828,86847.0,86830.0,0.21747125]
[1769389270128,0.83113882,86842.0,86830.0,0.21747125]
[1769389270348,0.81962366,86842.0,86830.0,0.21747125]
[1769389271012,0.21696638,86846.0,86830.0,0.21747125]
[1769389271218,1.03659004,86846.0,86831.0,0.0120178]
[1769389271421,0.81962366,86846.0,86831.0,0.0120178]
[1769389271666,0.81962366,86846.0,86830.0,0.21747125]
[1769389271871,0.81962366,86846.0,86831.0,0.01310694]
[1769389274030,0.21696638,86851.0,86831.0,0.01310694]
[1769389274196,1.03659004,86851.0,86832.0,0.23057803]
[1769389274688,1.03659004,86851.0,86834.0,0.21747125]
[1769389274910,1.03659004,86851.0,86835.0,0.01318583]
[1769389275638,0.81962366,86851.0,86835.0,0.01318583]
[1769389275856,0.01151317,86857.0,86839.0,1.05979989]
[1769389276074,0.01151317,86857.0,86842.0,0.21747125]
[1769389276296,0.0115133,86856.0,86843.0,0.01341822]
[1769389276946,0.01151291,86859.0,86843.0,0.01341822]
[1769389277203,0.0115133,86856.0,86843.0,0.01341822]
[1769389277409,0.99379342,86855.0,86843.0,0.01341822]
[1769389277624,0.98227998,86855.0,86843.0,0.01341822]
[1769389279388,0.98227998,86852.0,86832.0,0.22366514]
[1769389279601,0.98227998,86852.0,86832.0,1.03015528]
[1769389279822,0.98227998,86852.0,86835.0,0.22366514]
[1769389280046,0.98227998,86852.0,86837.0,0.22366514]
[1769389280270,0.98227998,86852.0,86838.0,0.23792639]
[1769389280501,1.1997197,86858.0,86838.0,1.03015528]
[1769389280713,1.1997197,86858.0,86839.0,0.22366514]
[1769389280939,1.1997197,86858.0,86841.0,0.22366514]
[1769389281158,1.1997197,86858.0,86842.0,0.2367724]
[1769389281378,0.09117378,86854.0,86843.0,0.01310711]
[1769389281581,0.09117378,86854.0,86843.0,0.23677225]
[1769389281790,0.09117378,86854.0,86843.0,0.22366514]
[1769389282188,0.09117378,86855.0,86843.0,0.22366514]
[1769389282391,0.20556455,86855.0,86843.0,0.22366514]
[1769389282650,0.11439077,86854.0,86843.0,0.22366514]
[1769389282875,0.13761266,86860.0,86852.0,0.01151383]
[1769389282876,0.00083274,86860.0,86852.0,0.01151383]
[1769389283107,0.17097673,86878.0,86852.0,0.01151383]
[1769389283108,0.09117378,86880.0,86858.0,0.22366514]
[1769389283382,0.01151039,86878.0,86861.0,0.22366514]
[1769389283647,0.98310439,86876.0,86861.0,0.22199309]
[1769389283806,0.98310439,86876.0,86861.0,0.21797848]
[1769389284005,0.98310439,86876.0,86861.0,0.21630508]
[1769389284220,0.98310439,86876.0,86861.0,0.21362655]
[1769389284393,0.98310439,86876.0,86861.0,0.2102772]
[1769389284597,0.98310439,86876.0,86861.0,0.20759643]
[1769389284760,0.09131459,86880.0,86863.0,0.22331783]
[1769389284963,0.00014081,86880.0,86865.0,0.22262283]
[1769389285161,0.00014081,86880.0,86865.0,0.21949493]
[1769389285364,0.00014081,86880.0,86865.0,0.2163652]
[1769389285597,0.00014081,86880.0,86866.0,0.22331705]
[1769389285792,0.00014081,86880.0,86866.0,0.22053146]
[1769389286311,0.00014081,86880.0,86867.0,0.22366514]
[1769389286475,0.00014081,86880.0,86869.0,0.22366514]
[1769389287278,0.00014081,86880.0,86861.0,0.06907578]
[1769389287279,0.0003631,86881.0,86875.0,0.22366514]
[1769389287471,0.09117378,86893.0,86877.0,0.22366514]
[1769389287679,0.09117378,86894.0,86877.0,0.22366514]
[1769389287878,0.01150787,86897.0,86874.0,0.01151092]
[1769389287879,0.10268178,86896.0,86879.0,0.22366514]
[1769389288086,0.10268178,86896.0,86881.0,1.03015528]
[1769389288262,0.01150814,86895.0,86882.0,0.22366514]
[1769389288463,0.01150827,86894.0,86882.0,0.22125954]
[1769389288689,0.01150827,86894.0,86882.0,0.21707901]
[1769389288901,0.011508,86896.0,86882.0,0.21324648]
[1769389289114,0.011508,86896.0,86882.0,0.20941361]
[1769389289327,0.011508,86896.0,86882.0,0.20592887]
[1769389289615,0.011508,86896.0,86882.0,0.20104975]
[1769389289773,0.011508,86896.0,86882.0,0.19756432]
[1769389290014,1.04547805,86881.0,86852.0,0.22366514]